{"text_format":"2","workbook":"xlsx","n_sheets":3,"sheets":["cd_info","cd_dtl","용어정의"],"not_rendered":{"charts":0,"images":0,"macros":0,"external_links":0,"defined_names":0,"comments":0,"pivot_tables":0},"unopened":[],"bounds":{"document_bytes":16777216,"sheet_cells":100000,"run_cost":"one","rows_first":2000,"rows_last":500,"rows_between":2000,"halvings":0,"cell_chars":16384,"cell_head_chars":4096},"cells_cut":0,"cells_raw":0,"read":"whole","date_system":"1900"}

{"sheet":"cd_info","index":0,"n_rows":42,"n_cols":6,"rows_kept":42,"cut":false,"hidden":false,"merged":[]}
["CODE_CD","CODE_TP_CD","CODE_NM","USE_YN"]
["AREA_CD","30","지역코드",null,null,{"$f":"CONCATENATE(\"insert into np_cd_info values ('\",A2,\"','\",B2,\"','\",C2,\"','Y', NOW(), 'SYSTEM', NOW(), 'SYSTEM');\")","v":"insert into np_cd_info values ('AREA_CD','30','지역코드','Y', NOW(), 'SYSTEM', NOW(), 'SYSTEM');"}]
["AUTH_TYPE","30","권한타입",null,null,{"$f":"CONCATENATE(\"insert into np_cd_info values ('\",A3,\"','\",B3,\"','\",C3,\"','Y', NOW(), 'SYSTEM', NOW(), 'SYSTEM');\")","v":"insert into np_cd_info values ('AUTH_TYPE','30','권한타입','Y', NOW(), 'SYSTEM', NOW(), 'SYSTEM');"}]
["BNK_CD","30","은행코드",null,null,"insert into np_cd_info values ('BNK_CD','30','은행코드','Y', NOW(), 'SYSTEM', NOW(), 'SYSTEM');"]
["BRAND_TYPE","30","브랜드유형",null,null,"insert into np_cd_info values ('BRAND_TYPE','30','브랜드유형','Y', NOW(), 'SYSTEM', NOW(), 'SYSTEM');"]
["CDD_DVSN","30","실사구분",null,null,"insert into np_cd_info values ('CDD_DVSN','30','실사구분','Y', NOW(), 'SYSTEM', NOW(), 'SYSTEM');"]
["CODE_TP_CD","10","코드타입",null,null,"insert into np_cd_info values ('CODE_TP_CD','10','코드타입','Y', NOW(), 'SYSTEM', NOW(), 'SYSTEM');"]
["CORP_DVSN","30","기업구분",null,null,"insert into np_cd_info values ('CORP_DVSN','30','기업구분','Y', NOW(), 'SYSTEM', NOW(), 'SYSTEM');"]
["CORP_TYPE","30","기업형태",null,null,"insert into np_cd_info values ('CORP_TYPE','30','기업형태','Y', NOW(), 'SYSTEM', NOW(), 'SYSTEM');"]
["DEL_YN","30","삭제여부",null,null,"insert into np_cd_info values ('DEL_YN','30','삭제여부','Y', NOW(), 'SYSTEM', NOW(), 'SYSTEM');"]
["DLV_CNDT","30","배송조건",null,null,"insert into np_cd_info values ('DLV_CNDT','30','배송조건','Y', NOW(), 'SYSTEM', NOW(), 'SYSTEM');"]
["DPST_ST_CD","30","입금상태코드",null,null,"insert into np_cd_info values ('DPST_ST_CD','30','입금상태코드','Y', NOW(), 'SYSTEM', NOW(), 'SYSTEM');"]
["DSTRBT_COST_UNIT","30","물류비단위",null,null,"insert into np_cd_info values ('DSTRBT_COST_UNIT','30','물류비단위','Y', NOW(), 'SYSTEM', NOW(), 'SYSTEM');"]
["IMP_DVSN","30","수입구분",null,null,"insert into np_cd_info values ('IMP_DVSN','30','수입구분','Y', NOW(), 'SYSTEM', NOW(), 'SYSTEM');"]
["ITEM_TYPE","30","품목유형",null,null,"insert into np_cd_info values ('ITEM_TYPE','30','품목유형','Y', NOW(), 'SYSTEM', NOW(), 'SYSTEM');"]
["ITEM_ST_CD","30","품목상태코드",null,null,"insert into np_cd_info values ('ITEM_ST_CD','30','품목상태코드','Y', NOW(), 'SYSTEM', NOW(), 'SYSTEM');"]
["LOAN_DVSN","30","여신구분",null,null,"insert into np_cd_info values ('LOAN_DVSN','30','여신구분','Y', NOW(), 'SYSTEM', NOW(), 'SYSTEM');"]
["PCH_ITEM_YN","30","구매품목여부",null,null,"insert into np_cd_info values ('PCH_ITEM_YN','30','구매품목여부','Y', NOW(), 'SYSTEM', NOW(), 'SYSTEM');"]
["PCH_ODR_ST_CD","30","구매발주상태코드",null,null,"insert into np_cd_info values ('PCH_ODR_ST_CD','30','구매발주상태코드','Y', NOW(), 'SYSTEM', NOW(), 'SYSTEM');"]
["PCH_REQ_DVSN","30","구매요청구분",null,null,"insert into np_cd_info values ('PCH_REQ_DVSN','30','구매요청구분','Y', NOW(), 'SYSTEM', NOW(), 'SYSTEM');"]
["PCH_REQ_ST_CD","30","구매요청상태코드",null,null,"insert into np_cd_info values ('PCH_REQ_ST_CD','30','구매요청상태코드','Y', NOW(), 'SYSTEM', NOW(), 'SYSTEM');"]
["PODR_DVSN","30","발주구분",null,null,"insert into np_cd_info values ('PODR_DVSN','30','발주구분','Y', NOW(), 'SYSTEM', NOW(), 'SYSTEM');"]
["PODR_PSSBL_DVSN","30","발주가능구분",null,null,"insert into np_cd_info values ('PODR_PSSBL_DVSN','30','발주가능구분','Y', NOW(), 'SYSTEM', NOW(), 'SYSTEM');"]
["RTN_DVSN","30","반품구분",null,null,"insert into np_cd_info values ('RTN_DVSN','30','반품구분','Y', NOW(), 'SYSTEM', NOW(), 'SYSTEM');"]
["RTN_ODR_ST_CD","30","반품발주상태코드",null,null,"insert into np_cd_info values ('RTN_ODR_ST_CD','30','반품발주상태코드','Y', NOW(), 'SYSTEM', NOW(), 'SYSTEM');"]
["RTN_REQ_ST_CD","30","반품요청상태코드",null,null,"insert into np_cd_info values ('RTN_REQ_ST_CD','30','반품요청상태코드','Y', NOW(), 'SYSTEM', NOW(), 'SYSTEM');"]
["SALE_ITEM_YN","30","판매품목여부",null,null,"insert into np_cd_info values ('SALE_ITEM_YN','30','판매품목여부','Y', NOW(), 'SYSTEM', NOW(), 'SYSTEM');"]
["SALE_TYPE","30","영업타입",null,null,"insert into np_cd_info values ('SALE_TYPE','30','영업타입','Y', NOW(), 'SYSTEM', NOW(), 'SYSTEM');"]
["ST_CD","30","상태코드",null,null,"insert into np_cd_info values ('ST_CD','30','상태코드','Y', NOW(), 'SYSTEM', NOW(), 'SYSTEM');"]
["STCK_DVSN","30","재고구분",null,null,"insert into np_cd_info values ('STCK_DVSN','30','재고구분','Y', NOW(), 'SYSTEM', NOW(), 'SYSTEM');"]
["STORE_DVSN","30","매장구분",null,null,"insert into np_cd_info values ('STORE_DVSN','30','매장구분','Y', NOW(), 'SYSTEM', NOW(), 'SYSTEM');"]
["UNIT_ST_CD","30","단가상태코드",null,null,"insert into np_cd_info values ('UNIT_ST_CD','30','단가상태코드','Y', NOW(), 'SYSTEM', NOW(), 'SYSTEM');"]
["USER_DVSN","30","사용자구분",null,null,"insert into np_cd_info values ('USER_DVSN','30','사용자구분','Y', NOW(), 'SYSTEM', NOW(), 'SYSTEM');"]
["WHS_DVSN","30","창고구분",null,null,"insert into np_cd_info values ('WHS_DVSN','30','창고구분','Y', NOW(), 'SYSTEM', NOW(), 'SYSTEM');"]
["WHS_MGNT_DVSN","30","입고관리구분",null,null,"insert into np_cd_info values ('WHS_MGNT_DVSN','30','입고관리구분','Y', NOW(), 'SYSTEM', NOW(), 'SYSTEM');"]
["WHS_LOC","30","칭고위치",null,null,"insert into np_cd_info values ('WHS_LOC','30','칭고위치','Y', NOW(), 'SYSTEM', NOW(), 'SYSTEM');"]
["WHS_ST_CD","30","창고상태코드",null,null,"insert into np_cd_info values ('WHS_ST_CD','30','창고상태코드','Y', NOW(), 'SYSTEM', NOW(), 'SYSTEM');"]
["RTN_RSN_DVSN","30","반품사유구분",null,null,"insert into np_cd_info values ('RTN_RSN_DVSN','30','반품사유구분','Y', NOW(), 'SYSTEM', NOW(), 'SYSTEM');"]
["COL_DVSN","30","수거구분",null,null,"insert into np_cd_info values ('COL_DVSN','30','수거구분','Y', NOW(), 'SYSTEM', NOW(), 'SYSTEM');"]
["RTN_REQ_DVSN","30","반품요청구분",null,null,"insert into np_cd_info values ('RTN_REQ_DVSN','30','반품요청구분','Y', NOW(), 'SYSTEM', NOW(), 'SYSTEM');"]
["DLV_DVSN","30","배송구분",null,null,"insert into np_cd_info values ('DLV_DVSN','30','배송구분','Y', NOW(), 'SYSTEM', NOW(), 'SYSTEM');"]
["STORE_ST_CD","30","매장상태코드",null,null,"insert into np_cd_info values ('STORE_ST_CD','30','매장상태코드','Y', NOW(), 'SYSTEM', NOW(), 'SYSTEM');"]

{"sheet":"cd_dtl","index":1,"n_rows":155,"n_cols":7,"rows_kept":155,"cut":false,"hidden":false,"merged":[]}
["CODE_CD","CODE_DTL_CD","CODE_DTL_NM","USE_YN","VIEW_NUM","CODE_DESC"]
["AREA_CD","A001","서울","Y",1,null,{"$f":"CONCATENATE(\"insert into np_cd_dtl values ('\",A2,\"','\",B2,\"','\",C2,\"','\",D2,\"',\",E2,\",'\",F2,\"',NOW(), 'SYSTEM', NOW(), 'SYSTEM');\")","v":"insert into np_cd_dtl values ('AREA_CD','A001','서울','Y',1,'',NOW(), 'SYSTEM', NOW(), 'SYSTEM');"}]
["AREA_CD","A002","인천","Y",2,null,{"$f":"CONCATENATE(\"insert into np_cd_dtl values ('\",A3,\"','\",B3,\"','\",C3,\"','\",D3,\"',\",E3,\",'\",F3,\"',NOW(), 'SYSTEM', NOW(), 'SYSTEM');\")","v":"insert into np_cd_dtl values ('AREA_CD','A002','인천','Y',2,'',NOW(), 'SYSTEM', NOW(), 'SYSTEM');"}]
["AREA_CD","A003","대전","Y",3,null,"insert into np_cd_dtl values ('AREA_CD','A003','대전','Y',3,'',NOW(), 'SYSTEM', NOW(), 'SYSTEM');"]
["AREA_CD","A004","광주","Y",4,null,"insert into np_cd_dtl values ('AREA_CD','A004','광주','Y',4,'',NOW(), 'SYSTEM', NOW(), 'SYSTEM');"]
["AREA_CD","A005","대구","Y",5,null,"insert into np_cd_dtl values ('AREA_CD','A005','대구','Y',5,'',NOW(), 'SYSTEM', NOW(), 'SYSTEM');"]
["AREA_CD","A006","울산","Y",6,null,"insert into np_cd_dtl values ('AREA_CD','A006','울산','Y',6,'',NOW(), 'SYSTEM', NOW(), 'SYSTEM');"]
["AREA_CD","A007","부산","Y",7,null,"insert into np_cd_dtl values ('AREA_CD','A007','부산','Y',7,'',NOW(), 'SYSTEM', NOW(), 'SYSTEM');"]
["AREA_CD","A008","세종","Y",8,null,"insert into np_cd_dtl values ('AREA_CD','A008','세종','Y',8,'',NOW(), 'SYSTEM', NOW(), 'SYSTEM');"]
["AREA_CD","A009","경기","Y",9,null,"insert into np_cd_dtl values ('AREA_CD','A009','경기','Y',9,'',NOW(), 'SYSTEM', NOW(), 'SYSTEM');"]
["AREA_CD","A010","강원","Y",10,null,"insert into np_cd_dtl values ('AREA_CD','A010','강원','Y',10,'',NOW(), 'SYSTEM', NOW(), 'SYSTEM');"]
["AREA_CD","A011","충북","Y",11,null,"insert into np_cd_dtl values ('AREA_CD','A011','충북','Y',11,'',NOW(), 'SYSTEM', NOW(), 'SYSTEM');"]
["AREA_CD","A012","충남","Y",12,null,"insert into np_cd_dtl values ('AREA_CD','A012','충남','Y',12,'',NOW(), 'SYSTEM', NOW(), 'SYSTEM');"]
["AREA_CD","A013","전북","Y",13,null,"insert into np_cd_dtl values ('AREA_CD','A013','전북','Y',13,'',NOW(), 'SYSTEM', NOW(), 'SYSTEM');"]
["AREA_CD","A014","전남","Y",14,null,"insert into np_cd_dtl values ('AREA_CD','A014','전남','Y',14,'',NOW(), 'SYSTEM', NOW(), 'SYSTEM');"]
["AREA_CD","A015","결북","Y",15,null,"insert into np_cd_dtl values ('AREA_CD','A015','결북','Y',15,'',NOW(), 'SYSTEM', NOW(), 'SYSTEM');"]
["AREA_CD","A016","경남","Y",16,null,"insert into np_cd_dtl values ('AREA_CD','A016','경남','Y',16,'',NOW(), 'SYSTEM', NOW(), 'SYSTEM');"]
["AREA_CD","A017","제주","Y",17,null,"insert into np_cd_dtl values ('AREA_CD','A017','제주','Y',17,'',NOW(), 'SYSTEM', NOW(), 'SYSTEM');"]
["AUTH_TYPE","A01","프랜차이즈","Y",1,null,"insert into np_cd_dtl values ('AUTH_TYPE','A01','프랜차이즈','Y',1,'',NOW(), 'SYSTEM', NOW(), 'SYSTEM');"]
["AUTH_TYPE","A02","단독매장","Y",2,null,"insert into np_cd_dtl values ('AUTH_TYPE','A02','단독매장','Y',2,'',NOW(), 'SYSTEM', NOW(), 'SYSTEM');"]
["BNK_CD","001","한국은행","Y",1,null,"insert into np_cd_dtl values ('BNK_CD','001','한국은행','Y',1,'',NOW(), 'SYSTEM', NOW(), 'SYSTEM');"]
["BNK_CD","002","kdb산업은행","Y",2,null,"insert into np_cd_dtl values ('BNK_CD','002','kdb산업은행','Y',2,'',NOW(), 'SYSTEM', NOW(), 'SYSTEM');"]
["BNK_CD","003","기업은행","Y",3,null,"insert into np_cd_dtl values ('BNK_CD','003','기업은행','Y',3,'',NOW(), 'SYSTEM', NOW(), 'SYSTEM');"]
["BNK_CD","004","국민은행","Y",4,null,"insert into np_cd_dtl values ('BNK_CD','004','국민은행','Y',4,'',NOW(), 'SYSTEM', NOW(), 'SYSTEM');"]
["BNK_CD","007","수협은행","Y",5,null,"insert into np_cd_dtl values ('BNK_CD','007','수협은행','Y',5,'',NOW(), 'SYSTEM', NOW(), 'SYSTEM');"]
["BNK_CD","008","한국수출입은행","Y",6,null,"insert into np_cd_dtl values ('BNK_CD','008','한국수출입은행','Y',6,'',NOW(), 'SYSTEM', NOW(), 'SYSTEM');"]
["BNK_CD","011","NH농협은행","Y",7,null,"insert into np_cd_dtl values ('BNK_CD','011','NH농협은행','Y',7,'',NOW(), 'SYSTEM', NOW(), 'SYSTEM');"]
["BNK_CD","020","우리은행","Y",8,null,"insert into np_cd_dtl values ('BNK_CD','020','우리은행','Y',8,'',NOW(), 'SYSTEM', NOW(), 'SYSTEM');"]
["BNK_CD","023","SC제일은행","Y",9,null,"insert into np_cd_dtl values ('BNK_CD','023','SC제일은행','Y',9,'',NOW(), 'SYSTEM', NOW(), 'SYSTEM');"]
["BNK_CD","027","한국씨티은행","Y",10,null,"insert into np_cd_dtl values ('BNK_CD','027','한국씨티은행','Y',10,'',NOW(), 'SYSTEM', NOW(), 'SYSTEM');"]
["BNK_CD","031","대구은행","Y",11,null,"insert into np_cd_dtl values ('BNK_CD','031','대구은행','Y',11,'',NOW(), 'SYSTEM', NOW(), 'SYSTEM');"]
["BNK_CD","032","부산은행","Y",12,null,"insert into np_cd_dtl values ('BNK_CD','032','부산은행','Y',12,'',NOW(), 'SYSTEM', NOW(), 'SYSTEM');"]
["BNK_CD","034","광주은행","Y",13,null,"insert into np_cd_dtl values ('BNK_CD','034','광주은행','Y',13,'',NOW(), 'SYSTEM', NOW(), 'SYSTEM');"]
["BNK_CD","035","제주은행","Y",14,null,"insert into np_cd_dtl values ('BNK_CD','035','제주은행','Y',14,'',NOW(), 'SYSTEM', NOW(), 'SYSTEM');"]
["BNK_CD","037","전북은행","Y",15,null,"insert into np_cd_dtl values ('BNK_CD','037','전북은행','Y',15,'',NOW(), 'SYSTEM', NOW(), 'SYSTEM');"]
["BNK_CD","039","BNK경남은행","Y",16,null,"insert into np_cd_dtl values ('BNK_CD','039','BNK경남은행','Y',16,'',NOW(), 'SYSTEM', NOW(), 'SYSTEM');"]
["BNK_CD","071","우쳉국","Y",17,null,"insert into np_cd_dtl values ('BNK_CD','071','우쳉국','Y',17,'',NOW(), 'SYSTEM', NOW(), 'SYSTEM');"]
["BNK_CD","081","KEB하나은행","Y",18,null,"insert into np_cd_dtl values ('BNK_CD','081','KEB하나은행','Y',18,'',NOW(), 'SYSTEM', NOW(), 'SYSTEM');"]
["BNK_CD","088","신한은행","Y",19,null,"insert into np_cd_dtl values ('BNK_CD','088','신한은행','Y',19,'',NOW(), 'SYSTEM', NOW(), 'SYSTEM');"]
["BNK_CD","089","케이뱅크","Y",20,null,"insert into np_cd_dtl values ('BNK_CD','089','케이뱅크','Y',20,'',NOW(), 'SYSTEM', NOW(), 'SYSTEM');"]
["BNK_CD","090","카카오뱅크","Y",21,null,"insert into np_cd_dtl values ('BNK_CD','090','카카오뱅크','Y',21,'',NOW(), 'SYSTEM', NOW(), 'SYSTEM');"]
["BRAND_TYPE","B001","카페","Y",1,null,"insert into np_cd_dtl values ('BRAND_TYPE','B001','카페','Y',1,'',NOW(), 'SYSTEM', NOW(), 'SYSTEM');"]
["BRAND_TYPE","B002","한식","Y",2,null,"insert into np_cd_dtl values ('BRAND_TYPE','B002','한식','Y',2,'',NOW(), 'SYSTEM', NOW(), 'SYSTEM');"]
["BRAND_TYPE","B003","분식","Y",3,null,"insert into np_cd_dtl values ('BRAND_TYPE','B003','분식','Y',3,'',NOW(), 'SYSTEM', NOW(), 'SYSTEM');"]
["BRAND_TYPE","B004","일식","Y",4,null,"insert into np_cd_dtl values ('BRAND_TYPE','B004','일식','Y',4,'',NOW(), 'SYSTEM', NOW(), 'SYSTEM');"]
["BRAND_TYPE","B005","도시락","Y",5,null,"insert into np_cd_dtl values ('BRAND_TYPE','B005','도시락','Y',5,'',NOW(), 'SYSTEM', NOW(), 'SYSTEM');"]
["BRAND_TYPE","B006","패스트푸트","Y",6,null,"insert into np_cd_dtl values ('BRAND_TYPE','B006','패스트푸트','Y',6,'',NOW(), 'SYSTEM', NOW(), 'SYSTEM');"]
["BRAND_TYPE","B007","중국집","Y",7,null,"insert into np_cd_dtl values ('BRAND_TYPE','B007','중국집','Y',7,'',NOW(), 'SYSTEM', NOW(), 'SYSTEM');"]
["BRAND_TYPE","B008","피자","Y",8,null,"insert into np_cd_dtl values ('BRAND_TYPE','B008','피자','Y',8,'',NOW(), 'SYSTEM', NOW(), 'SYSTEM');"]
["BRAND_TYPE","B009","치킨","Y",9,null,"insert into np_cd_dtl values ('BRAND_TYPE','B009','치킨','Y',9,'',NOW(), 'SYSTEM', NOW(), 'SYSTEM');"]
["CDD_DVSN","CD01","정기실사","Y",1,null,"insert into np_cd_dtl values ('CDD_DVSN','CD01','정기실사','Y',1,'',NOW(), 'SYSTEM', NOW(), 'SYSTEM');"]
["CDD_DVSN","CD02","수시실사","Y",2,null,"insert into np_cd_dtl values ('CDD_DVSN','CD02','수시실사','Y',2,'',NOW(), 'SYSTEM', NOW(), 'SYSTEM');"]
["CODE_TP_CD","10","시스템","Y",1,null,"insert into np_cd_dtl values ('CODE_TP_CD','10','시스템','Y',1,'',NOW(), 'SYSTEM', NOW(), 'SYSTEM');"]
["CODE_TP_CD","20","공통","Y",2,null,"insert into np_cd_dtl values ('CODE_TP_CD','20','공통','Y',2,'',NOW(), 'SYSTEM', NOW(), 'SYSTEM');"]
["CODE_TP_CD","30","업무","Y",3,null,"insert into np_cd_dtl values ('CODE_TP_CD','30','업무','Y',3,'',NOW(), 'SYSTEM', NOW(), 'SYSTEM');"]
["CORP_DVSN","CD01","대기업","Y",1,null,"insert into np_cd_dtl values ('CORP_DVSN','CD01','대기업','Y',1,'',NOW(), 'SYSTEM', NOW(), 'SYSTEM');"]
["CORP_DVSN","CD02","중견기업","Y",2,null,{"$f":"CONCATENATE(\"insert into np_cd_dtl values ('\",A57,\"','\",B57,\"','\",C57,\"','\",D57,\"',\",E57,\",'\",F57,\"',NOW(), 'SYSTEM', NOW(), 'SYSTEM');\")","v":"insert into np_cd_dtl values ('CORP_DVSN','CD02','중견기업','Y',2,'',NOW(), 'SYSTEM', NOW(), 'SYSTEM');"}]
["CORP_DVSN","CD03","중소기업","Y",3,null,"insert into np_cd_dtl values ('CORP_DVSN','CD03','중소기업','Y',3,'',NOW(), 'SYSTEM', NOW(), 'SYSTEM');"]
["CORP_TYPE","CT01","개인사업자","Y",1,null,"insert into np_cd_dtl values ('CORP_TYPE','CT01','개인사업자','Y',1,'',NOW(), 'SYSTEM', NOW(), 'SYSTEM');"]
["CORP_TYPE","CT02","법인사업자","Y",2,null,"insert into np_cd_dtl values ('CORP_TYPE','CT02','법인사업자','Y',2,'',NOW(), 'SYSTEM', NOW(), 'SYSTEM');"]
["DEL_YN","Y","미사용","Y",1,"삭제된 데이터를 의미","insert into np_cd_dtl values ('DEL_YN','Y','미사용','Y',1,'삭제된 데이터를 의미',NOW(), 'SYSTEM', NOW(), 'SYSTEM');"]
["DEL_YN","N","사용","Y",2,null,"insert into np_cd_dtl values ('DEL_YN','N','사용','Y',2,'',NOW(), 'SYSTEM', NOW(), 'SYSTEM');"]
["DLV_CNDT","DC01","직납","Y",1,null,"insert into np_cd_dtl values ('DLV_CNDT','DC01','직납','Y',1,'',NOW(), 'SYSTEM', NOW(), 'SYSTEM');"]
["DLV_CNDT","DC02","경유","Y",2,null,"insert into np_cd_dtl values ('DLV_CNDT','DC02','경유','Y',2,'',NOW(), 'SYSTEM', NOW(), 'SYSTEM');"]
["DLV_CNDT","DC03","비축","Y",3,null,"insert into np_cd_dtl values ('DLV_CNDT','DC03','비축','Y',3,'',NOW(), 'SYSTEM', NOW(), 'SYSTEM');"]
["DPST_ST_CD","DP01","입금요청","Y",1,null,"insert into np_cd_dtl values ('DPST_ST_CD','DP01','입금요청','Y',1,'',NOW(), 'SYSTEM', NOW(), 'SYSTEM');"]
["DPST_ST_CD","DP02","입금승인","Y",2,null,{"$f":"CONCATENATE(\"insert into np_cd_dtl values ('\",A67,\"','\",B67,\"','\",C67,\"','\",D67,\"',\",E67,\",'\",F67,\"',NOW(), 'SYSTEM', NOW(), 'SYSTEM');\")","v":"insert into np_cd_dtl values ('DPST_ST_CD','DP02','입금승인','Y',2,'',NOW(), 'SYSTEM', NOW(), 'SYSTEM');"}]
["DPST_ST_CD","DP03","입금반려","Y",3,null,"insert into np_cd_dtl values ('DPST_ST_CD','DP03','입금반려','Y',3,'',NOW(), 'SYSTEM', NOW(), 'SYSTEM');"]
["DSTRBT_COST_UNIT","CBM","부피","Y",1,null,"insert into np_cd_dtl values ('DSTRBT_COST_UNIT','CBM','부피','Y',1,'',NOW(), 'SYSTEM', NOW(), 'SYSTEM');"]
["DSTRBT_COST_UNIT","EA","개수","Y",2,null,"insert into np_cd_dtl values ('DSTRBT_COST_UNIT','EA','개수','Y',2,'',NOW(), 'SYSTEM', NOW(), 'SYSTEM');"]
["DSTRBT_COST_UNIT","BOX","박수","Y",3,null,{"$f":"CONCATENATE(\"insert into np_cd_dtl values ('\",A71,\"','\",B71,\"','\",C71,\"','\",D71,\"',\",E71,\",'\",F71,\"',NOW(), 'SYSTEM', NOW(), 'SYSTEM');\")","v":"insert into np_cd_dtl values ('DSTRBT_COST_UNIT','BOX','박수','Y',3,'',NOW(), 'SYSTEM', NOW(), 'SYSTEM');"}]
["IMP_DVSN","IMP0","국내","Y",1,null,{"$f":"CONCATENATE(\"insert into np_cd_dtl values ('\",A72,\"','\",B72,\"','\",C72,\"','\",D72,\"',\",E72,\",'\",F72,\"',NOW(), 'SYSTEM', NOW(), 'SYSTEM');\")","v":"insert into np_cd_dtl values ('IMP_DVSN','IMP0','국내','Y',1,'',NOW(), 'SYSTEM', NOW(), 'SYSTEM');"}]
["IMP_DVSN","IMP1","수입","Y",2,null,{"$f":"CONCATENATE(\"insert into np_cd_dtl values ('\",A73,\"','\",B73,\"','\",C73,\"','\",D73,\"',\",E73,\",'\",F73,\"',NOW(), 'SYSTEM', NOW(), 'SYSTEM');\")","v":"insert into np_cd_dtl values ('IMP_DVSN','IMP1','수입','Y',2,'',NOW(), 'SYSTEM', NOW(), 'SYSTEM');"}]
["ITEM_TYPE","IT00","소모품","Y",1,null,"insert into np_cd_dtl values ('ITEM_TYPE','IT00','소모품','Y',1,'',NOW(), 'SYSTEM', NOW(), 'SYSTEM');"]
["ITEM_TYPE","IT01","자산용","Y",2,null,"insert into np_cd_dtl values ('ITEM_TYPE','IT01','자산용','Y',2,'',NOW(), 'SYSTEM', NOW(), 'SYSTEM');"]
["ITEM_ST_CD","IS00","사용","Y",1,null,{"$f":"CONCATENATE(\"insert into np_cd_dtl values ('\",A76,\"','\",B76,\"','\",C76,\"','\",D76,\"',\",E76,\",'\",F76,\"',NOW(), 'SYSTEM', NOW(), 'SYSTEM');\")","v":"insert into np_cd_dtl values ('ITEM_ST_CD','IS00','사용','Y',1,'',NOW(), 'SYSTEM', NOW(), 'SYSTEM');"}]
["ITEM_ST_CD","IS01","단종","Y",2,null,"insert into np_cd_dtl values ('ITEM_ST_CD','IS01','단종','Y',2,'',NOW(), 'SYSTEM', NOW(), 'SYSTEM');"]
["ITEM_ST_CD","IS02","삭제","Y",3,null,"insert into np_cd_dtl values ('ITEM_ST_CD','IS02','삭제','Y',3,'',NOW(), 'SYSTEM', NOW(), 'SYSTEM');"]
["LOAN_DVSN","LD01","선입금","Y",1,null,"insert into np_cd_dtl values ('LOAN_DVSN','LD01','선입금','Y',1,'',NOW(), 'SYSTEM', NOW(), 'SYSTEM');"]
["LOAN_DVSN","LD02","후불(신용)","Y",2,null,"insert into np_cd_dtl values ('LOAN_DVSN','LD02','후불(신용)','Y',2,'',NOW(), 'SYSTEM', NOW(), 'SYSTEM');"]
["PCH_ODR_ST_CD","PO00","임시저장","Y",1,"구매발주기본정보","insert into np_cd_dtl values ('PCH_ODR_ST_CD','PO00','임시저장','Y',1,'구매발주기본정보',NOW(), 'SYSTEM', NOW(), 'SYSTEM');"]
["PCH_ODR_ST_CD","PO10","발주등록","Y",2,"구매발주기본정보","insert into np_cd_dtl values ('PCH_ODR_ST_CD','PO10','발주등록','Y',2,'구매발주기본정보',NOW(), 'SYSTEM', NOW(), 'SYSTEM');"]
["PCH_ODR_ST_CD","PO20","반주요청","Y",3,"구매발주기본정보","insert into np_cd_dtl values ('PCH_ODR_ST_CD','PO20','반주요청','Y',3,'구매발주기본정보',NOW(), 'SYSTEM', NOW(), 'SYSTEM');"]
["PCH_ODR_ST_CD","PO30","발주접수","Y",4,"구매발주기본정보","insert into np_cd_dtl values ('PCH_ODR_ST_CD','PO30','발주접수','Y',4,'구매발주기본정보',NOW(), 'SYSTEM', NOW(), 'SYSTEM');"]
["PCH_ODR_ST_CD","PO40","발주반려","Y",5,"구매발주기본정보","insert into np_cd_dtl values ('PCH_ODR_ST_CD','PO40','발주반려','Y',5,'구매발주기본정보',NOW(), 'SYSTEM', NOW(), 'SYSTEM');"]
["PCH_ODR_ST_CD","PO99","발주취소","Y",6,"구매발주기본정보","insert into np_cd_dtl values ('PCH_ODR_ST_CD','PO99','발주취소','Y',6,'구매발주기본정보',NOW(), 'SYSTEM', NOW(), 'SYSTEM');"]
["PCH_REQ_DVSN","PD01","매장","Y",1,null,"insert into np_cd_dtl values ('PCH_REQ_DVSN','PD01','매장','Y',1,'',NOW(), 'SYSTEM', NOW(), 'SYSTEM');"]
["PCH_REQ_DVSN","PD02","부서","Y",2,null,"insert into np_cd_dtl values ('PCH_REQ_DVSN','PD02','부서','Y',2,'',NOW(), 'SYSTEM', NOW(), 'SYSTEM');"]
["PCH_REQ_DVSN","PD03","브랜드","Y",3,null,"insert into np_cd_dtl values ('PCH_REQ_DVSN','PD03','브랜드','Y',3,'',NOW(), 'SYSTEM', NOW(), 'SYSTEM');"]
["PCH_REQ_ST_CD","PR00","임시저장","Y",1,"구매요청기본정보","insert into np_cd_dtl values ('PCH_REQ_ST_CD','PR00','임시저장','Y',1,'구매요청기본정보',NOW(), 'SYSTEM', NOW(), 'SYSTEM');"]
["PCH_REQ_ST_CD","PR10","구매등록","Y",2,"구매요청기본정보","insert into np_cd_dtl values ('PCH_REQ_ST_CD','PR10','구매등록','Y',2,'구매요청기본정보',NOW(), 'SYSTEM', NOW(), 'SYSTEM');"]
["PCH_REQ_ST_CD","PR20","구매요청","Y",3,"구매요청기본정보","insert into np_cd_dtl values ('PCH_REQ_ST_CD','PR20','구매요청','Y',3,'구매요청기본정보',NOW(), 'SYSTEM', NOW(), 'SYSTEM');"]
["PCH_REQ_ST_CD","PR30","구매접수","Y",4,"구매요청기본정보","insert into np_cd_dtl values ('PCH_REQ_ST_CD','PR30','구매접수','Y',4,'구매요청기본정보',NOW(), 'SYSTEM', NOW(), 'SYSTEM');"]
["PCH_REQ_ST_CD","PR40","구매반려","Y",5,"구매요청기본정보","insert into np_cd_dtl values ('PCH_REQ_ST_CD','PR40','구매반려','Y',5,'구매요청기본정보',NOW(), 'SYSTEM', NOW(), 'SYSTEM');"]
["PCH_REQ_ST_CD","PR99","구매취소","Y",6,"구매요청기본정보","insert into np_cd_dtl values ('PCH_REQ_ST_CD','PR99','구매취소','Y',6,'구매요청기본정보',NOW(), 'SYSTEM', NOW(), 'SYSTEM');"]
["PODR_DVSN","OD01","구매","Y",1,null,"insert into np_cd_dtl values ('PODR_DVSN','OD01','구매','Y',1,'',NOW(), 'SYSTEM', NOW(), 'SYSTEM');"]
["PODR_DVSN","OD02","반품","Y",2,null,"insert into np_cd_dtl values ('PODR_DVSN','OD02','반품','Y',2,'',NOW(), 'SYSTEM', NOW(), 'SYSTEM');"]
["PODR_PSSBL_DVSN","PO01","발주가능","Y",1,null,"insert into np_cd_dtl values ('PODR_PSSBL_DVSN','PO01','발주가능','Y',1,'',NOW(), 'SYSTEM', NOW(), 'SYSTEM');"]
["PODR_PSSBL_DVSN","PO02","발주불가","Y",2,null,"insert into np_cd_dtl values ('PODR_PSSBL_DVSN','PO02','발주불가','Y',2,'',NOW(), 'SYSTEM', NOW(), 'SYSTEM');"]
["RTN_DVSN","R01","실물반품","Y",1,null,"insert into np_cd_dtl values ('RTN_DVSN','R01','실물반품','Y',1,'',NOW(), 'SYSTEM', NOW(), 'SYSTEM');"]
["RTN_DVSN","R02","폐기반품","Y",2,null,"insert into np_cd_dtl values ('RTN_DVSN','R02','폐기반품','Y',2,'',NOW(), 'SYSTEM', NOW(), 'SYSTEM');"]
["RTN_ODR_ST_CD","RO10","반품발주등록","Y",2,"반품발주기본정보","insert into np_cd_dtl values ('RTN_ODR_ST_CD','RO10','반품발주등록','Y',2,'반품발주기본정보',NOW(), 'SYSTEM', NOW(), 'SYSTEM');"]
["RTN_ODR_ST_CD","RO20","반품발주요청","Y",3,"반품발주기본정보","insert into np_cd_dtl values ('RTN_ODR_ST_CD','RO20','반품발주요청','Y',3,'반품발주기본정보',NOW(), 'SYSTEM', NOW(), 'SYSTEM');"]
["RTN_ODR_ST_CD","RO30","반품발주접수","Y",4,"반품발주기본정보","insert into np_cd_dtl values ('RTN_ODR_ST_CD','RO30','반품발주접수','Y',4,'반품발주기본정보',NOW(), 'SYSTEM', NOW(), 'SYSTEM');"]
["RTN_ODR_ST_CD","RO40","반품발주반려","Y",5,"반품발주기본정보","insert into np_cd_dtl values ('RTN_ODR_ST_CD','RO40','반품발주반려','Y',5,'반품발주기본정보',NOW(), 'SYSTEM', NOW(), 'SYSTEM');"]
["RTN_ODR_ST_CD","RO99","반품발주취소","Y",6,"반품발주기본정보","insert into np_cd_dtl values ('RTN_ODR_ST_CD','RO99','반품발주취소','Y',6,'반품발주기본정보',NOW(), 'SYSTEM', NOW(), 'SYSTEM');"]
["RTN_REQ_ST_CD","RR00","임시저장","Y",1,"반품요청기본정보","insert into np_cd_dtl values ('RTN_REQ_ST_CD','RR00','임시저장','Y',1,'반품요청기본정보',NOW(), 'SYSTEM', NOW(), 'SYSTEM');"]
["RTN_REQ_ST_CD","RR10","반품등록","Y",2,"반품요청기본정보","insert into np_cd_dtl values ('RTN_REQ_ST_CD','RR10','반품등록','Y',2,'반품요청기본정보',NOW(), 'SYSTEM', NOW(), 'SYSTEM');"]
["RTN_REQ_ST_CD","RR20","반품요청","Y",3,"반품요청기본정보","insert into np_cd_dtl values ('RTN_REQ_ST_CD','RR20','반품요청','Y',3,'반품요청기본정보',NOW(), 'SYSTEM', NOW(), 'SYSTEM');"]
["RTN_REQ_ST_CD","RR30","반품접수","Y",4,"반품요청기본정보","insert into np_cd_dtl values ('RTN_REQ_ST_CD','RR30','반품접수','Y',4,'반품요청기본정보',NOW(), 'SYSTEM', NOW(), 'SYSTEM');"]
["RTN_REQ_ST_CD","RR40","반품반려","Y",5,"반품요청기본정보","insert into np_cd_dtl values ('RTN_REQ_ST_CD','RR40','반품반려','Y',5,'반품요청기본정보',NOW(), 'SYSTEM', NOW(), 'SYSTEM');"]
["RTN_REQ_ST_CD","RR99","반품취소","Y",6,"반품요청기본정보","insert into np_cd_dtl values ('RTN_REQ_ST_CD','RR99','반품취소','Y',6,'반품요청기본정보',NOW(), 'SYSTEM', NOW(), 'SYSTEM');"]
["RTN_REQ_ST_CD","RO00","임시저장","Y",1,"반품발주기본정보","insert into np_cd_dtl values ('RTN_REQ_ST_CD','RO00','임시저장','Y',1,'반품발주기본정보',NOW(), 'SYSTEM', NOW(), 'SYSTEM');"]
["SALE_TYPE","S01","개인","Y",1,null,"insert into np_cd_dtl values ('SALE_TYPE','S01','개인','Y',1,'',NOW(), 'SYSTEM', NOW(), 'SYSTEM');"]
["SALE_TYPE","S02","법인","Y",2,null,"insert into np_cd_dtl values ('SALE_TYPE','S02','법인','Y',2,'',NOW(), 'SYSTEM', NOW(), 'SYSTEM');"]
["ST_CD","S000","사용","Y",1,null,"insert into np_cd_dtl values ('ST_CD','S000','사용','Y',1,'',NOW(), 'SYSTEM', NOW(), 'SYSTEM');"]
["ST_CD","S001","미사용","Y",2,null,"insert into np_cd_dtl values ('ST_CD','S001','미사용','Y',2,'',NOW(), 'SYSTEM', NOW(), 'SYSTEM');"]
["ST_CD","S002","보류","Y",3,null,"insert into np_cd_dtl values ('ST_CD','S002','보류','Y',3,'',NOW(), 'SYSTEM', NOW(), 'SYSTEM');"]
["STCK_DVSN","SD01","정상","Y",1,null,"insert into np_cd_dtl values ('STCK_DVSN','SD01','정상','Y',1,'',NOW(), 'SYSTEM', NOW(), 'SYSTEM');"]
["STCK_DVSN","SD02","2급","Y",2,null,"insert into np_cd_dtl values ('STCK_DVSN','SD02','2급','Y',2,'',NOW(), 'SYSTEM', NOW(), 'SYSTEM');"]
["STCK_DVSN","SD03","폐기대상","Y",3,null,"insert into np_cd_dtl values ('STCK_DVSN','SD03','폐기대상','Y',3,'',NOW(), 'SYSTEM', NOW(), 'SYSTEM');"]
["STORE_DVSN","S01","체인직영","Y",1,null,"insert into np_cd_dtl values ('STORE_DVSN','S01','체인직영','Y',1,'',NOW(), 'SYSTEM', NOW(), 'SYSTEM');"]
["STORE_DVSN","S02","체인가맹","Y",2,null,"insert into np_cd_dtl values ('STORE_DVSN','S02','체인가맹','Y',2,'',NOW(), 'SYSTEM', NOW(), 'SYSTEM');"]
["STORE_DVSN","S03","단독매장","Y",3,null,"insert into np_cd_dtl values ('STORE_DVSN','S03','단독매장','Y',3,'',NOW(), 'SYSTEM', NOW(), 'SYSTEM');"]
["UNIT_ST_CD","U001","대기","Y",1,null,"insert into np_cd_dtl values ('UNIT_ST_CD','U001','대기','Y',1,'',NOW(), 'SYSTEM', NOW(), 'SYSTEM');"]
["UNIT_ST_CD","U002","진행","Y",2,null,"insert into np_cd_dtl values ('UNIT_ST_CD','U002','진행','Y',2,'',NOW(), 'SYSTEM', NOW(), 'SYSTEM');"]
["UNIT_ST_CD","U003","폐기","Y",3,null,"insert into np_cd_dtl values ('UNIT_ST_CD','U003','폐기','Y',3,'',NOW(), 'SYSTEM', NOW(), 'SYSTEM');"]
["USER_DVSN","U01","가맹점","Y",1,null,"insert into np_cd_dtl values ('USER_DVSN','U01','가맹점','Y',1,'',NOW(), 'SYSTEM', NOW(), 'SYSTEM');"]
["USER_DVSN","U02","브랜드","Y",2,null,"insert into np_cd_dtl values ('USER_DVSN','U02','브랜드','Y',2,'',NOW(), 'SYSTEM', NOW(), 'SYSTEM');"]
["USER_DVSN","U03","매장","Y",3,null,"insert into np_cd_dtl values ('USER_DVSN','U03','매장','Y',3,'',NOW(), 'SYSTEM', NOW(), 'SYSTEM');"]
["USER_DVSN","U04","영업담당자","Y",4,null,"insert into np_cd_dtl values ('USER_DVSN','U04','영업담당자','Y',4,'',NOW(), 'SYSTEM', NOW(), 'SYSTEM');"]
["USER_DVSN","U05","공급사","Y",5,null,"insert into np_cd_dtl values ('USER_DVSN','U05','공급사','Y',5,'',NOW(), 'SYSTEM', NOW(), 'SYSTEM');"]
["WHS_DVSN","W01","본사","Y",1,null,"insert into np_cd_dtl values ('WHS_DVSN','W01','본사','Y',1,'',NOW(), 'SYSTEM', NOW(), 'SYSTEM');"]
["WHS_DVSN","W02","매장","Y",2,null,"insert into np_cd_dtl values ('WHS_DVSN','W02','매장','Y',2,'',NOW(), 'SYSTEM', NOW(), 'SYSTEM');"]
["WHS_MGNT_DVSN","WD01","입고","Y",1,null,"insert into np_cd_dtl values ('WHS_MGNT_DVSN','WD01','입고','Y',1,'',NOW(), 'SYSTEM', NOW(), 'SYSTEM');"]
["WHS_MGNT_DVSN","WD02","출고","Y",2,null,"insert into np_cd_dtl values ('WHS_MGNT_DVSN','WD02','출고','Y',2,'',NOW(), 'SYSTEM', NOW(), 'SYSTEM');"]
["WHS_MGNT_DVSN","WD03","폐기","Y",3,null,"insert into np_cd_dtl values ('WHS_MGNT_DVSN','WD03','폐기','Y',3,'',NOW(), 'SYSTEM', NOW(), 'SYSTEM');"]
["WHS_LOC","WL01","판매용","Y",1,null,"insert into np_cd_dtl values ('WHS_LOC','WL01','판매용','Y',1,'',NOW(), 'SYSTEM', NOW(), 'SYSTEM');"]
["WHS_LOC","WL02","B품","Y",2,null,"insert into np_cd_dtl values ('WHS_LOC','WL02','B품','Y',2,'',NOW(), 'SYSTEM', NOW(), 'SYSTEM');"]
["WHS_LOC","WL03","폐기품","Y",3,null,"insert into np_cd_dtl values ('WHS_LOC','WL03','폐기품','Y',3,'',NOW(), 'SYSTEM', NOW(), 'SYSTEM');"]
["WHS_ST_CD","W001","운영","Y",1,null,"insert into np_cd_dtl values ('WHS_ST_CD','W001','운영','Y',1,'',NOW(), 'SYSTEM', NOW(), 'SYSTEM');"]
["WHS_ST_CD","W002","미운영","Y",2,null,"insert into np_cd_dtl values ('WHS_ST_CD','W002','미운영','Y',2,'',NOW(), 'SYSTEM', NOW(), 'SYSTEM');"]
["WHS_ST_CD","W003","폐점","Y",3,null,"insert into np_cd_dtl values ('WHS_ST_CD','W003','폐점','Y',3,'',NOW(), 'SYSTEM', NOW(), 'SYSTEM');"]
["RTN_RSN_DVSN","RR01","유통기한초과","Y",1,null,"insert into np_cd_dtl values ('RTN_RSN_DVSN','RR01','유통기한초과','Y',1,'',NOW(), 'SYSTEM', NOW(), 'SYSTEM');"]
["RTN_RSN_DVSN","RR02","포장불량","Y",2,null,"insert into np_cd_dtl values ('RTN_RSN_DVSN','RR02','포장불량','Y',2,'',NOW(), 'SYSTEM', NOW(), 'SYSTEM');"]
["RTN_RSN_DVSN","RR03","제품불량","Y",3,null,"insert into np_cd_dtl values ('RTN_RSN_DVSN','RR03','제품불량','Y',3,'',NOW(), 'SYSTEM', NOW(), 'SYSTEM');"]
["COL_DVSN","C001","본사수거","Y",1,null,"insert into np_cd_dtl values ('COL_DVSN','C001','본사수거','Y',1,'',NOW(), 'SYSTEM', NOW(), 'SYSTEM');"]
["COL_DVSN","C002","공급사수거","Y",2,null,"insert into np_cd_dtl values ('COL_DVSN','C002','공급사수거','Y',2,'',NOW(), 'SYSTEM', NOW(), 'SYSTEM');"]
["RTN_REQ_DVSN","RR01","요청반품","Y",1,"반품요청건 존재","insert into np_cd_dtl values ('RTN_REQ_DVSN','RR01','요청반품','Y',1,'반품요청건 존재',NOW(), 'SYSTEM', NOW(), 'SYSTEM');"]
["RTN_REQ_DVSN","RR02","미요청반품","Y",2,"반품요청건 미존재","insert into np_cd_dtl values ('RTN_REQ_DVSN','RR02','미요청반품','Y',2,'반품요청건 미존재',NOW(), 'SYSTEM', NOW(), 'SYSTEM');"]
["DLV_DVSN","DL01","본사배송","Y",1,null,"insert into np_cd_dtl values ('DLV_DVSN','DL01','본사배송','Y',1,'',NOW(), 'SYSTEM', NOW(), 'SYSTEM');"]
["DLV_DVSN","DL02","공급사직송","Y",2,null,{"$f":"CONCATENATE(\"insert into np_cd_dtl values ('\",A152,\"','\",B152,\"','\",C152,\"','\",D152,\"',\",E152,\",'\",F152,\"',NOW(), 'SYSTEM', NOW(), 'SYSTEM');\")","v":"insert into np_cd_dtl values ('DLV_DVSN','DL02','공급사직송','Y',2,'',NOW(), 'SYSTEM', NOW(), 'SYSTEM');"}]
["STORE_ST_CD","ST01","오픈","Y",1,null,"insert into np_cd_dtl values ('STORE_ST_CD','ST01','오픈','Y',1,'',NOW(), 'SYSTEM', NOW(), 'SYSTEM');"]
["STORE_ST_CD","ST02","보류","Y",2,null,"insert into np_cd_dtl values ('STORE_ST_CD','ST02','보류','Y',2,'',NOW(), 'SYSTEM', NOW(), 'SYSTEM');"]
["STORE_ST_CD","ST03","폐점","Y",3,null,"insert into np_cd_dtl values ('STORE_ST_CD','ST03','폐점','Y',3,'',NOW(), 'SYSTEM', NOW(), 'SYSTEM');"]

{"sheet":"용어정의","index":2,"n_rows":279,"n_cols":4,"rows_kept":279,"cut":false,"hidden":false,"merged":[]}
["한글","영문","약어","용어 의미 및 정의"]
["계정","ACCOUNT","ACCT","계좌"]
["실제","ACTUALITY","ACTLT","현실, 사실, 실재"]
["추가","ADD","ADD","첨가"]
["관리자","ADMINISTRATOR","ADMIN"]
["선","ADVANCE","ADV","선**, 사전의"]
["소속된","AFFILIATED","AFFL"]
["변경후","AFTER","AF"]
["대리인","AGENT","AGNT"]
["금액","AMOUNT","AMT"]
["적용","APPLY","APPLY"]
["승인","APPROVAL","APPRV"]
["도착","ARRIVAL","ARRV"]
["자산","ASSET","ASSET"]
["배정","ASSIGN","ASSGN"]
["첨부","ATTACH","ATTCH"]
["권한","AUTHORITY","AUTH"]
["자동","AUTO","AUTO"]
["잔액","BALANCE","BAL"]
["은행","BANK","BNK"]
["바코드","BARCODE","BARCD"]
["기초","BASIC","BASIC","기본, 기준"]
["변경전","BEFORE","BF"]
["입찰","BIDDING","BID"]
["계산서","BILL","BILL"]
["브랜드","BRAND","BRAND","가맹점이 관리 하는 브랜드"]
["사업","BUSINESS","BSNS"]
["업태","BUSINESS CONDITIONS","BSNS_CNDT"]
["사다","BUY","BUY"]
["구매자","BUYER","BUYER"]
["호출","CALL","CALL","전화 통화"]
["취소","CANCEL","CNCL"]
["자본","CAPITAL","CPTL"]
["현금","CASH","CASH"]
["카테고리","CATEGORY","CTGR"]
["업종","CATEGORY OF BUSINESS","CTGR_BSNS"]
["인증서","CERTIFICATE","CERT"]
["변경","CHANGE","CHG"]
["도시","CITY","CITY"]
["분류","CLASS","CLASS"]
["CLOSE","CLOSE","CLOSE"]
["코드","CODE","CD"]
["수거","COLLECTION","COL"]
["지시","COMMAND","CMD","ORDER, 지시하다, 명령하다"]
["회사","COMPANY","CMPNY"]
["조건","CONDITION","CNDT"]
["확인","CONFIRM","CNFM"]
["확인서","CONFIRMATION DOCUMENT","CNFM_DOC"]
["내용","CONTENT","CTT"]
["계약","CONTRACT","CONT"]
["통제","CONTROL","CTRL","제어"]
["기업","CORPORATE","CORP","회사, 법인, 사업자"]
["비용","COST","COST","값, 가격"]
["국가","COUNTRY","CNTRY"]
["외상","CREDIT","CREDT","신용"]
["통화","CURRENCY","CURR"]
["고객","CUSTOMER","CUST","가맹점, 수발주 시스템과 계약을 맺은 주체, 여러 브랜드를 가질 수 있다."]
["일자","DATE","DT"]
["일시","DATETIME","DTTM"]
["일","DAY","DAY"]
["지연","DELAY","DELAY"]
["삭제","DELETE","DEL"]
["배송","DELIVERY","DLV"]
["납품","DELIVERY","DLV"]
["납품서","DELIVERY STATEMENT","DLV_STTMT","납품명세서"]
["출고","DELIVERY WAREHOUSE","DW"]
["수요","DEMAND","DMAND"]
["부서","DEPARTMENT","DEPT"]
["출발","DEPARTURE","DPTUR"]
["입금","DEPOSIT","DPST","입금액, 예금, 예치금"]
["예금자","DEPOSITOR","DPSTR"]
["설명","DESCRIPTION","DESC","서술, 표현, 기술"]
["디자인","DESIGN","DESIGN"]
["지정","DESIGNATE","DSGNT"]
["상세","DETAIL","DTL"]
["다른","DIFFERENT","DIFF","차이"]
["폐기","DISCARD","DISCD","버리다"]
["할인","DISCOUNT","DISCT"]
["전시","DISPLAY","DSPLY","진열"]
["물류","DISTRIBUTION","DSTRBT"]
["폐기","DISUSE","DUSE"]
["분할","DIVISION","DVSN","분배, 구분"]
["전자","ELECTRONIC","ELECT","전자의"]
["이메일","EMAIL","EMAL"]
["종료","END","END"]
["영어","ENGLISH","ENG"]
["설립","ESTABLISHMENT","ESTBL","수립, 확립"]
["추정","ESTIMATE","EST","추산, 예정, 견적서"]
["기타","ETC","ETC"]
["평가","EVALUATION","EVAL"]
["실행","EXECUTE","EXEC"]
["예상","EXPECT","EXPCT","기대"]
["만료","EXPIRY","EXPRY","만기, 기한만료"]
["수출","EXPORT","EXP"]
["연장","EXTEND","EXTND","확장"]
["인자","FACTOR","FACTR","요소"]
["공장","FACTORY","FCTRY"]
["결함","FAULT","FAULT","단점"]
["팩스","FAX","FAX"]
["파일","FILE","FILE"]
["최종","FINAL","FINAL"]
["처음","FIRST","FIRST","첫번째"]
["표시","FLAG","FLAG","별도"]
["예측","FORECAST","FRCST"]
["자유","FREE","FREE","비"]
["부터","FROM","FROM"]
["상품","GOODS","GOODS"]
["등급","GRADE","GRD"]
["그룹","GROUP","GRP"]
["세로","HEIGHT","HEIGHT"]
["높이","HIGH","HIGH"]
["이력","HISTORY","HST"]
["보류","HOLD","HOLD"]
["아이디","ID","ID"]
["수입","IMPORT","IMP"]
["산업","INDUSTRY","INDST"]
["정보","INFORMATION","INFO"]
["감사","INSPECTION","INSPEC","검수"]
["발행","ISSUE","ISSUE"]
["품목","ITEM","ITEM"]
["가입","JOIN","JOIN","참가, 연결"]
["유지","KEEP","KEEP"]
["종류","KIND","KIND"]
["상표","LABEL","LBL"]
["마지막","LAST","LAST"]
["위도","LATITUDE","LAT"]
["단계","LEVEL","LVL"]
["한도","LIMIT","LMT"]
["도로","LOAD","LOAD"]
["여신","LOAN","LOAN"]
["로고","LOGO","LOGO"]
["경도","LONGITUDE","LONG"]
["하한","LOWER","LOWER"]
["주-","MAIN","MAIN"]
["관리","MANAGEMENT","MGNT"]
["담당자","MANAGER","MGR","관리자"]
["재료","MATERIAL","MTRL"]
["최대","MAXIMUM","MAX"]
["메뉴","MENU","MENU"]
["최소","MINIMUM","MIN"]
["휴대전화","MOBILE","MOBILE"]
["방법","MODE","MODE","방식, 유형"]
["월","MONTH","MONTH"]
["이름","NAME","NM","성명"]
["신규","NEW","NEW"]
["번호","NO","NO"]
["공지사항","NOTICE","NOTI"]
["번호","NUMBER","NUM"]
["수주","OBTAIN ORDER","OODR"]
["과거","OLD","OLD"]
["OPEN","OPEN","OPEN"]
["선택","OPTION","OPTN","옵션"]
["주문","ORDER","ODR"]
["다른","OTHER","OTHER"]
["미지급","OUTSTANDING","OUTSTD","미지급금액"]
["대표자","OWNER","OWNER"]
["포장","PACKAGING","PKG","PACKING"]
["지급","PAYMENT","PAY","결제, 납입"]
["퍼센트","PERCENT","PCNT"]
["개인","PERSONS","PERSON"]
["장소","PLACE","PLACE"]
["발주","PLACE AN ORDER","PODR","발주하다"]
["포인트","POINT","POINT"]
["미리","PRE","PRE","전-, 선-"]
["처리","PROCESS","PROC"]
["상품","PRODUCT","PRDCT"]
["구매","PURCHASE","PCH","PURCH"]
["수량","QTY","QTY"]
["순위","RANK","RANK"]
["비율","RATE","RT","율"]
["사유","REASON","RSN"]
["미수금","RECEIVABLE","RCVB","미수금액"]
["수신","RECEIVE","RCV"]
["추천","RECOMMEND","RCMD"]
["접수","REGISTER","REG","신청"]
["등록","REGISTRATION","REG","생성"]
["반려","REJECT","RJCT","거절, 거부하다"]
["대답","REPLY","REPLY"]
["보고서","REPORT","RPT"]
["대표","REPRESENTATIVE","RPRST"]
["요청","REQUEST","REQ"]
["결과","RESULT","RSLT"]
["반품","RETURN","RTN"]
["판매","SALE","SALE"]
["매출","SALES","SALES"]
["샘플","SAMPLE","SMPL"]
["점수","SCORE","SCORE"]
["화면","SCREEN","SCRN"]
["두번째","SECOND","SCND"]
["팔다","SELL","SELL"]
["판매자","SELLER","SLLR","거래처"]
["송신","SEND","SND"]
["분리","SEPARATE","SPRT","독립, 서로 다른, 별개"]
["순서","SEQUENCE","SEQ","순번, 일련번호"]
["서비스","SERVICE","SVC"]
["정산","SETTLEMENT","STTL"]
["출하","SHIPMENT","SHMT","출고"]
["서명","SIGNATURE","SIGN"]
["단독","SINGLE","SINGLE"]
["시작","START","STT"]
["상태","STATE","STATE"]
["명세서","STATEMENT","STTMT"]
["재고","STOCK","STCK"]
["매장","STORE","STORE","가맹점과 계약을 맺은 매장으로 매장과 브랜드는 1:1 관계"]
["과목","SUBJECT","SBJT"]
["제출","SUBMIT","SBMT"]
["공급","SUPPLY","SPPLY"]
["시스템","SYSTEM","SYS"]
["세금","TAX","TAX"]
["전화번호","TELEPHONE","TEL"]
["기간","TERM","TERM"]
["본문","TEXT","TEXT"]
["세번째","THIRD","THRD"]
["시각","TIME","TM"]
["제목","TITLE","TITLE"]
["로","TO","TO"]
["총","TOTAL","TOTAL","토탈"]
["추적","TRACE","TRACE"]
["거래","TRANSACTION","TRSC"]
["유형","TYPE","TYPE"]
["타입","TYPE","TYPE"]
["고유","UNIQUE","UNQ"]
["단위","UNIT","UNIT"]
["미납","UNPAID","UNPAID","미납금액"]
["상한","UPPER","UPPER"]
["URL","URL","URL"]
["사용","USE","USE"]
["사용자","USER","USER","이용자, 담당자"]
["유효","VALID","VALID"]
["부가세","VAT","VAT","부가가치세"]
["판매회사","VENDOR","VNDR"]
["버전","VERSION","VER"]
["조회","VIEW","VIEW","보다"]
["부피","VOLUME","VOLUME"]
["투표","VOTE","VOTE","표, 표결"]
["입고","WAREHOUSING","WHS"]
["무게","WEIGHT","WEIGHT","체중"]
["중량","WEIGHT","WEIGHT"]
["가로","WIDTH","WIDTH"]
["작업","WORK","WORK"]
["년","YEAR","YEAR"]
["여부","YESNO","YN"]
["우편번호","ZIP NO","ZIP_NO"]
["실제의","ACTUAL","ACT"]
["납기","PERIOD","PERIOD"]
["완료","COMPLETE","CMPLT"]
["납품처","VENDOR","VNDR"]
["가능","POSSIBLE","PSSBL"]
["비고","NOTE","NOTE"]
["예정","SCHEDULE","SCH"]
["요금","CHARGE","CHRG"]
["창고","WAREHOUSE","WHS"]
["실사","CONDUCT DUE DILIGENCE","CDD"]
["기존의","EXISTING","EXST","현재의 존재의"]
["전산화된","COMPUTERIZED","COM"]
["동의","AGREEMENT","AGR"]
["가맹점","AFFILIATION SHOP","AFFL_SHOP"]
["단기","SHORT-TERM","SHORT"]
["계약서","CONTRACT","CONT"]
["이미지","IMAGE","IMAGE"]
["유통","EXPIRY","EXPRY","유통기한, 만기일"]
["경로","PATH","PATH"]
["기준","STANDARD","STDD"]
["리드","LEAD","LEAD"]
["출력","PRINT","PRN"]
["가수금","TEMPORARY RECEIVABLE ACCOUNT","TMP_RCV_ACCT"]
["통장","BANKBOOK","BBOOK"]
["사본","COPY","COPY"]
["직위","POSITION","PSTN"]
["담당업무","ASSIGN TASK","ASSGN_TASK"]
["박스","BOX","BOX"]
["가격","PRICE","PRICE"]
["위치","LOCATION","LOC"]
["적정","PROPER","PRP"]
["안전","SAFETY","SFT"]
["약어","ABBREVIATION","ABBR","축약, 축약형"]
["잔여","REMAIN","REMAIN"]
["찾기","SEARCH","SEARCH"]
["오더퀸","ORDERQUEEN","OQ"]